Cogmind - Beta 16 @@@ ROGUE MODE // 2025.11.05 @ 23:37:43 Player: daxter767676 Result: Destroyed by P-60 Hacker with Shock Rifle Performance ------------- Evolutions (0) 0 Regions Visited (3) 600 Robots Destroyed (23) 115 Value Destroyed (568) 568 Prototype IDs (0) 0 Alien Tech Used (0) 0 Bonus (0) 0 TOTAL SCORE: 1283 Bonus ------- None Cogmind --------- Core Integrity 0/250 Matter 204/300 Energy 249/250 System Corruption 1% Temperature Cool (0) Movement Rolling (120) Ox2 Location -7/Recycling Parts ------- > --- POWER (1) -------- Ion Engine > --- PROPULSION (2) --- Armored Wheel Armored Wheel > --- UTILITY (2) ------ Improved Heat Sink High-capacity Storage Unit > --- WEAPON (2) ------- Barrage Gun > --- INVENTORY (20) --- Subdweller Power Source Armored Wheel Armored Wheel Improved Heat Sink Large Battery (200) Terrain Scan Processor Terrain Scan Processor Light Armor Plating Scrap Shield Beam Cannon Light Assault Rifle Light Cannon Light Cannon Light Cannon Grenade Launcher Plasma Cutter Multitool Peak State ------------ > --- POWER ------------ Ion Engine > --- PROPULSION ------- Armored Wheel Armored Wheel > --- UTILITY ---------- Improved Heat Sink High-capacity Storage Unit > --- WEAPON ----------- Barrage Gun Flamer > --- INVENTORY -------- Subdweller Power Source Armored Wheel Armored Wheel Improved Heat Sink Large Battery Terrain Scan Processor Terrain Scan Processor Light Armor Plating Scrap Shield Beam Cannon Light Assault Rifle Light Cannon Light Cannon Light Cannon Grenade Launcher Plasma Cutter Multitool [Rating: 16] Favorites ----------- Power Ion Engine Engine Ion Engine Propulsion Wheel Leg Aluminum Leg Wheel Wheel Utility High-capacity Storage Unit Device Sensor Array Storage High-capacity Storage Unit Weapon Small Laser Energy Gun Small Laser Energy Cannon Beam Cannon Ballistic Gun Barrage Gun Ballistic Cannon Light Cannon Special Weapon Plasma Cutter Build | -11 -10 -10 -7 ------- Run | Yrd Mat Sub Rec Slots Evolved . | . . . . Power . | . . . . Propulsion . | . . . . Utility . | . . . . Weapon . | . . . . Parts Attached 20 | . 11 6 3 Power 2 | . 1 1 . Engine 2 | . 1 1 . Core . | . . . . Reactor . | . . . . Propulsion 7 | . 5 1 1 Treads . | . . . . Leg . | . . . . Wheel 7 | . 5 1 1 Hover . | . . . . Flight . | . . . . Utility 4 | . 2 1 1 Device 3 | . 1 1 1 Storage 1 | . 1 . . Processor . | . . . . Hackware . | . . . . Protection . | . . . . Artifact . | . . . . Weapon 7 | . 3 3 1 Energy Gun 1 | . 1 . . Energy Cannon 1 | . 1 . . Ballistic Gun 2 | . . 2 . Ballistic Cannon 1 | . 1 . . Launcher . | . . . . Special Weapon 2 | . . 1 1 Impact Weapon . | . . . . Slashing Weapon . | . . . . Piercing Weapon . | . . . . Special Melee Weapon . | . . . . Unidentified Prototypes . | . . . . Parts Lost 8 | . 3 4 1 Power 2 | . 1 1 . Propulsion 3 | . 1 2 . Utility 1 | . . 1 . Weapon 2 | . 1 . 1 Highest Loss Streak 2 | . 1 2 1 To Critical Strikes . | . . . . Average Backups 18 | . 17 19 18 Power 1 | . 1 . 1 Propulsion 3 | . 3 3 2 Utility 6 | . 6 8 6 Weapon 5 | . 5 5 7 Tool/Special . | . . . . Unused Backups 24 | . 8 2 14 Power 2 | . 1 . 1 Propulsion 6 | . 4 . 2 Utility 10 | . 2 2 6 Weapon 5 | . 1 . 4 Tool/Special 1 | . . . 1 Average Slot Usage (%) 91 | . 91 99 73 Engine 9 | . 8 13 14 Wheel 25 | . 24 28 26 Device 13 | . 13 14 12 Storage 14 | . 14 14 14 Energy Gun 11 | . 15 . . Ballistic Gun 3 | . . 18 6 Ballistic Cannon 9 | . 12 4 . Peak Build Rating 16 | . 10 15 16 Average Rating 9 | . 8 13 12 On Entrance 8 | 6 6 10 11 Avg Prop Armor Cover (%) . | . . . . Naked Turns . | . . . . Heaviest Build 52 | 10 52 52 49 Greatest Support 24 | 20 20 22 24 Greatest Overweight (x) 4 | . 4 4 4 Average Overweight (x) 2 | . 2 2 1 Largest Inventory Capacity 20 | . 20 20 20 Average Capacity 19 | . 19 20 20 Most Carried 20 | . 20 20 20 Average Carried 18 | . 17 19 19 Final Capacity 20 | 8 20 20 20 Final Carried 20 | 6 20 20 18 Class Distribution -------------------- 89% | Mutant 10% | Scavenger-Mutant Dominant Class ---------------- Mutant | -10/Materials Scavenger-Mutant | -10/Subcaves Mutant | -7/Recycling Resources | -11 -10 -10 -7 ----------- Run | Yrd Mat Sub Rec Matter Collected 658 | 200 319 139 . Remotely . | . . . . Salvage Created 602 | . 444 158 . Parts 40 | . 30 10 . Haulers Intercepted . | . . . . Recyclers Shooed . | . . . . Parts Field Recycled . | . . . . Retrieved Matter . | . . . . Parts Self-Destructed 8 | . . 8 . Prevented . | . . . . Parts Restored . | . . . . Kills | -11 -10 -10 -7 ------- Run | Yrd Mat Sub Rec Combat Hostiles Destroyed 21 | . 16 5 . Guns 10 | . 5 5 . Cannons 11 | . 11 . . Classes Destroyed 6 | . 4 2 . Worker 1 | . 1 . . Tunneler 1 | . 1 . . Swarmer 8 | . 5 3 . Grunt 11 | . 11 . . Artisan 1 | . . 1 . Subdweller 2 | . . 2 . Best Kill Streak 4 | . 4 3 . Combat Bots Only 4 | . 4 3 . Max Kills in Single Turn 1 | . 1 1 . Gunslinging . | . . . . Exploded . | . . . . Melee . | . . . . Uniques/NPCs Destroyed . | . . . . Combat | -11 -10 -10 -7 -------- Run | Yrd Mat Sub Rec Hostile Shots Fired 140 | . 72 58 10 Missed 42 | . 23 19 . Hits 98 | . 49 39 10 Projectile 98 | . 49 39 10 Critical Strikes 2 | . 1 . 1 Damage Taken 1034 | . 519 364 151 Core 254 | . 130 81 43 Absorbed by Shields . | . . . . Regen/Repaired (Parts) 38 | . 38 . . Core Remaining (%) 100 | 100 . . . Volleys Fired 88 | . 50 32 6 Largest 2 | . 2 2 2 Hottest 128 | . 70 48 128 Shots Fired 153 | . 100 46 7 Gun 99 | . 50 43 6 Cannon 50 | . 50 . . Launcher . | . . . . Special 4 | . . 3 1 Kinetic 99 | . 50 43 6 Thermal 54 | . 50 3 1 Explosive . | . . . . Electromagnetic . | . . . . Robot Hit Streak 8 | . 7 8 3 Robot Miss Streak 4 | . 4 3 1 Penetration Max . | . . . . Secondary Targets . | . . . . Shots Hit Robots 88 | . 61 22 5 Core Hits 37 | . 27 10 . Critical Kills . | . . . . Critical Parts Destroyed . | . . . . Critical Strikes 1 | . 1 . . Blast 1 | . 1 . . Melee Attacks . | . . . . Impact . | . . . . Slashing . | . . . . Piercing . | . . . . Sneak Attacks . | . . . . Combat Hostiles . | . . . . Follow-up Attacks . | . . . . Damage Inflicted 1327 | . 932 284 111 Guns 706 | . 324 284 98 Cannons 608 | . 608 . . Explosions . | . . . . Melee . | . . . . Ramming . | . . . . Kinetic 990 | . 608 284 98 Thermal 337 | . 324 . 13 Explosive . | . . . . Electromagnetic . | . . . . Impact . | . . . . Slashing . | . . . . Piercing . | . . . . Highest Corruption 1 | . . . 1 Average Corruption 1 | . . . 1 Corruption Purged . | . . . . Corruption Blocked . | . . . . Overload Shots . | . . . . Overflow Damage . | . . . . Projectiles . | . . . . Explosions . | . . . . Melee . | . . . . Knockbacks 12 | . 12 . . Impact . | . . . . Kinetic 11 | . 11 . . Secondary 1 | . 1 . . Self-Inflicted Damage . | . . . . Shots . | . . . . Rammed . | . . . . Targets Rammed . | . . . . Kicked . | . . . . Crushed . | . . . . Highest Temperature 102 | . 102 . 24 Average Temperature 24 | . 24 . 16 Received Heat Transfer 327 | . 195 132 . Siege Activations . | . . . . Martial Activations . | . . . . Shielding Activations . | . . . . Robots Disrupted . | . . . . Combat Hostiles . | . . . . Robots Corrupted . | . . . . Combat Hostiles . | . . . . Parts Fried . | . . . . Impact Corruptions . | . . . . Robots Melted . | . . . . Combat Hostiles . | . . . . Parts Melted 1 | . . 1 . Heat Transferred 805 | . 725 . 80 Parts Sabotaged . | . . . . Parts Stolen . | . . . . Parts Stripped . | . . . . Power Chain Reactions . | . . . . Alert | -11 -10 -10 -7 ------- Run | Yrd Mat Sub Rec Maximum Alert Level . | . . . . Low Security (%) 100 | . 100 . 100 Level 1 . | . . . . Level 2 . | . . . . Level 3 . | . . . . Level 4 . | . . . . Level 5 . | . . . . High Security . | . . . . Max Security . | . . . . Peak Influence 125 | . 125 . 2 Initial 2 | . . . 2 Average 35 | . 38 . . Influence Increases 539 | . 464 75 . Destroy 0b10 Robot/C 380 | . 320 60 . Destroy 0b10 Robot/NC 10 | . 10 . . Destroy Leader 80 | . 80 . . Successful Hack 8 | . 8 . . Destroy Structure 1 | . 1 . . Lose Combat Pursuer 60 | . 45 15 . Influence Decreases 539 | . 424 110 5 Entered New Map 23 | . . 20 3 Time Decay 466 | . 404 60 2 Lost Part 50 | . 20 30 . Squads Dispatched 4 | . 4 . . Investigation 3 | . 3 . . Extermination . | . . . . Reinforcement 1 | . 1 . . Assault . | . . . . Garrison . | . . . . Intercept . | . . . . Searches Triggered . | . . . . Construction Impeded . | . . . . Haulers Reinforced . | . . . . Active Scanning Responses . | . . . . Cargo Convoy Interrupts . | . . . . Stealth | -11 -10 -10 -7 --------- Run | Yrd Mat Sub Rec Distress Signals 2 | . 2 . . Communications Jammed . | . . . . Distress Signals . | . . . . Times Spotted 48 | . 38 9 1 Peak Tracking Total 6 | . 6 5 1 Tactical Retreats 4 | . 3 1 . Traps | -11 -10 -10 -7 ------- Run | Yrd Mat Sub Rec Traps Triggered 4 | . 4 . . Indirectly . | . . . . Trap Hack Attempts . | . . . . Triggered . | . . . . Disarmed . | . . . . Reprogrammed . | . . . . Reused . | . . . . Traps Extracted . | . . . . Installed . | . . . . Triggered . | . . . . Machines | -11 -10 -10 -7 ---------- Run | Yrd Mat Sub Rec Machines Disabled . | . . . . Max in Single Turn . | . . . . Machines Repaired . | . . . . Machines Dismantled . | . . . . Machines Sabotaged . | . . . . Overloaded Fab Kills . | . . . . Hacking | -11 -10 -10 -7 --------- Run | Yrd Mat Sub Rec Machines Accessed 5 | . 3 . 2 Terminals 4 | . 2 . 2 Fabricators . | . . . . Repair Stations 1 | . 1 . . Recycling Units . | . . . . Scanalyzers . | . . . . Garrison Access . | . . . . Total Hacks 20 | . 15 . 5 Successful 11 | . 9 . 2 Failed 9 | . 6 . 3 Catastrophic 1 | . . . 1 Database Lockouts . | . . . . Manual 14 | . 10 . 4 Terminals 16 | . 11 . 5 Fabricators . | . . . . Repair Stations 4 | . 4 . . Recycling Units . | . . . . Scanalyzers . | . . . . Garrison Access . | . . . . Terminal Hacks . | . . . . Fabricator Hacks . | . . . . Repair Station Hacks 4 | . 4 . . Scan Component 2 | . 2 . . Repair 2 | . 2 . . Recycling Unit Hacks . | . . . . Scanalyzer . | . . . . Garrison Access Hacks . | . . . . Unauthorized Hacks 7 | . 5 . 2 Terminals 7 | . 5 . 2 Assimilate 1 | . 1 . . Botnet 1 | . 1 . . Operators 1 | . 1 . . Skim 4 | . 2 . 2 Fabricators . | . . . . Repair Stations . | . . . . Recycling Units . | . . . . Scanalyzers . | . . . . Garrison Access . | . . . . Data Cores Recovered . | . . . . Used . | . . . . Hacking Detections 5 | . 3 . 2 Full Trace Events . | . . . . Feedback Events . | . . . . Feedback Blocked . | . . . . Robot Schematics Acquired . | . . . . Robots Built . | . . . . Authchips . | . . . . Time . | . . . . Total Robot Build Rating . | . . . . Part Schematics Acquired . | . . . . Parts Built . | . . . . Authchips . | . . . . Time . | . . . . Total Part Build Rating . | . . . . Part Studies Acquired . | . . . . Parts Repaired 2 | . 2 . . Time 52 | . 52 . . Parts Recycled . | . . . . Recycled Matter . | . . . . Retrieved Matter . | . . . . Retrieved Components . | . . . . Parts Scanalyzed . | . . . . Part Schematics Acquired . | . . . . Parts Damaged . | . . . . Bothacking | -11 -10 -10 -7 ------------ Run | Yrd Mat Sub Rec Used RIF Installer . | . . . . Robots Hacked . | . . . . Non-combat . | . . . . Combat . | . . . . Robot Hacks Applied . | . . . . Relay Couplers Released . | . . . . Fabnet Peak Effective % . | . . . . Robots Rewired . | . . . . Allies Hacked . | . . . . Hacks Repelled . | . . . . Allies | -11 -10 -10 -7 -------- Run | Yrd Mat Sub Rec Total Allies . | . . . . Largest Group . | . . . . Highest-Rated Group . | . . . . Highest-Rated Ally . | . . . . Total Orders . | . . . . Ally Attacks . | . . . . Total Damage . | . . . . Kills . | . . . . Allies Corrupted . | . . . . Allies Melted . | . . . . Intel | -11 -10 -10 -7 ------- Run | Yrd Mat Sub Rec Active Infowar (turns) 1824 | . 1449 375 . Sensors 1449 | . 1449 . . Terrain 375 | . . 375 . Robot Analysis Total . | . . . . Derelict Logs Recovered 1 | . . 1 . Drone Launches . | . . . . Drone Recoveries . | . . . . Exploration | -11 -10 -10 -7 ------------- Run | Yrd Mat Sub Rec Turns Passed 2040 | . 1537 378 125 Spaces Moved 1093 | 1 737 255 100 Core . | . . . . Treads . | . . . . Legs 39 | 1 38 . . Wheels 1054 | . 699 255 100 Hover . | . . . . Flight . | . . . . Fastest Speed 105 | 120 110 110 105 Average Speed 113 | 120 114 111 107 Slowest Speed 150 | 120 140 150 150 Overloaded Moves . | . . . . Propulsion Burnouts . | . . . . Robots Hopped . | . . . . Potential Cave-ins . | . . . . Cave-ins Triggered . | . . . . Exploration Rate (%) 28 | 2 75 22 16 Regions Visited 3 Branch Regions 2 Pre-discovered Areas . | . . . . Known Exits Taken . | . . . . Unknown Exits Taken 3 | 1 1 1 . Scrap Searched 3 | . . 3 . Spaces Dug . | . . . . Terrain Destroyed . | . . . . Melee . | . . . . Projectile . | . . . . AOE . | . . . . Terrain Rammed . | . . . . Walls Destroyed . | . . . . Machines Disabled . | . . . . Actions | -11 -10 -10 -7 --------- Run | Yrd Mat Sub Rec Total 1752 | . 1333 307 112 Wait 506 | . 501 5 . Move 1090 | . 736 254 100 Hop . | . . . . Pick Up 27 | . 22 5 . Fast Attach 7 | . 6 1 . Attach 8 | . 2 2 4 Detach 3 | . 1 . 2 Swap 8 | . 5 3 . Drop 15 | . 10 5 . Fire 88 | . 50 32 6 Melee . | . . . . Ram . | . . . . Kick . | . . . . Crush . | . . . . Escape Stasis . | . . . . Rewire . | . . . . Trap . | . . . . Miscellaneous . | . . . . Route ------- -11/Scrapyard -10/Materials (discovered 5 exits: [*Mat x3] / [*Min] / [*Sub]) -10/Subcaves (discovered 2 exits: [*Mat] / *Rec) -7/Recycling History --------- Turn | Location | Event 1 | -11/Scrapyard | Discovered new exit (range 0) 1 | -11/Scrapyard | Entered Materials 127 | -10/Materials | Discovered new exit (range 16) 268 | -10/Materials | Discovered new exit (range 12) 317 | -10/Materials | Build established: Mutant 382 | -10/Materials | Discovered new exit (range 4) 440 | -10/Materials | Discovered new exit (range 16) 568 | -10/Materials | Repaired Lgt. Cannon 596 | -10/Materials | Repaired Wheel 696 | -10/Materials | Discovered new exit (range 9) 1371 | -10/Materials | Core integrity fell below 50% 1538 | -10/Materials | Entered Subcaves 1604 | -10/Subcaves | Shifting Twisted Machinery released Battle Cannon 1616 | -10/Subcaves | Shifting Twisted Machinery released Sub. Beam Cannon 1638 | -10/Subcaves | Learned location of 1 exit from Materials 1662 | -10/Subcaves | Disturbed a concealed Subdweller 1713 | -10/Subcaves | Discovered new exit (range 8) 1906 | -10/Subcaves | Discovered new exit (range 9) 1913 | -10/Subcaves | Core integrity fell below 20% 1916 | -10/Subcaves | Entered Recycling 2041 | -7/Recycling | Destroyed by P-60 Hacker with Shock Rifle Last Messages --------------- 01911_ Wheel destroyed. 01913_ Imp. Terrain Scanner destroyed. LOCATION=UNKNOWN GOAL=ESCAPE 01942_ Connecting with Terminal... 01942_ Current location identified: Recycling >>Trojan(Skim) Trojan loaded successfully. Testing... Terminal linked with 0 systems. Please expand to 4 more systems! 01989_ Connecting with Terminal... >>Trojan(Skim) Trojan loaded successfully. Testing... Terminal linked with 1 system. Please expand to 3 more systems! 02029_ P-60 Hacker springs to life. 02029_ Flamer destroyed. 02041_ Destroyed Remote Datajack. Map ----- +----------------------------------------------------+ | ??????????????????????????????????????????????? | | ??????????????????????????????????????????????? | | ??????????????????????????????????????????????? | | ??????????????????????????????????????????????? | | ??????????????????????????????????????????????? | | ??????????????????????????????????????????????? | | ??????????????????????????????????????????????? | | ??????????????????????????????????????????????? | | ??????????????????????????????????????????????? | | ??????????????????????????????????????????????? | | ??????????????????????????????????????????????? | | ??????????????????????????????????????????????? | | ??????????????????????????????????????????????? | | ??????????????????????????????????????????????? | | ??????????????????????????????????????????????? | | ??????????????????????????????????????????????? | | ??????????????????????????????????????????????? | | ???????????????????##?????????????????????????? | | ???????????????????""?????????????????????????? | | ??##############????Y?????????????????????????? | | ??# #????" ????????????????????????? | | ??# #????# ????????????????????????? | | ??# """" """" #????# ????????????????????????? | | ??# """" """" #???##r###############?????????? | | ??# """" """" #???#! p s !%[ #?????????? | | ??# #???# @ [ ! u #?????????? | | ??# """" #???# !u l d #?????????? | | ??# """" #???# i[ u Y #?????????? | | ??# """" " #???# !t #?????????? | | ??# T #???# d b ! #?????????? | | ??# " #???# t l k [ #?????????? | | ??# #???# ! [k k] !#?????????? | | ??######+#########?# !i #?????????? | | ?????# ##### ############+#######?????????? | | ?????# ??? | | ?????# ??? | | ?????# #????? | | ?????# #####+############+############????? | | ?????## ##?# #?????????????????????????? | | ??????# #??# """ #?????????????????????????? | | ??????# #??# "T #?????????????????????????? | | ??????# #??# """ #?????????????????????????? | | ??????# #??# #?????????????????????????? | | ??????# #??# """ #?????????????????????????? | | ??????# #??# """ #?????????????????????????? | | ??????# #??# """ #?????????????????????????? | | ??????# #??# #?????????????????????????? | | ??????# #??# """ #?????????????????????????? | | ??????#####??# """ #?????????????????????????? | | ?????????????# """ #?????????????????????????? | +----------------------------------------------------+ Best States ------------- Heat Dissipation 39 Energy Generation 10 Energy Capacity 250 Matter Stores 300 Matter Capacity 300 Sight Range 16 Robot Scan Range 14 Terrain Scan Range 16 Terrain Scan Density 10 Evasion (%) 55 Item Schematics ----------------- None Robot Schematics ------------------ None Fabricated ------------ Nothing Repaired ---------- Lgt. Cannon | 75% | -10/Materials Wheel | 80% | -10/Materials Studied --------- None Alien Tech Used ----------------- None Achievements -------------- Art Critic Challenges ------------ None Game ------ Seed AccelerationMatterChainsword Manual? 0 Play Time 00:20:48 Cumulative 158.8 hours Start 2025.11.05 @ 23:18:23 End 2025.11.05 @ 23:37:43 Sessions 1 Manual Loads 0 Difficulty Rogue Special Mode None Game No. 167 Rogue 165 Adventurer 2 Explorer 0 Win Type - Total 0 Types 0/0/0/0/0/0/0/0/0/0 Lore% 64 Gallery% 57 Achievement% 32 Wizard Run 0 Options --------- Layout 2 ASCII 0 Keyboard 1 Movement Vi Keybinds 0 Fullscreen 0 Font 42/SmallcapsGlow Map View 29x24 Zoom Use 100% Tactical HUD 1 Map Filters NONE Filters NONE Steam 1 RUN: 028793e3-68e9-4808-97f0-67e606d61294